[Event "December 19 Early 2023"]
[Site "https://www.chess.com"]
[Date "2023.12.19"]
[Round "10"]
[White "Azali, Tannaz"]
[Black "Puzzlebot_1294"]
[Result "1-0"]
[Board "83"]
[TimeControl "180+1"]
[WhiteFideId "12537721"]
[WhiteElo "1828"]
[BlackElo "2646"]
[WhiteTeam "IRI"]
[WhiteClock "0:00:09"]
[BlackClock "0:00:17"]

1. e4 {[%clk 0:03:00]}  e5 {[%clk 0:02:59]} 2. Nc3 {[%clk 0:03:00]}  Nc6 {[%clk 0:02:59]} 3. Bc4 {[%clk 0:03:00]}  Nf6 {[%clk 0:03:00]} 4. d3 {[%clk 0:03:00]}  Na5 {[%clk 0:03:00]} 5. Nge2 {[%clk 0:02:59]}  c6 {[%clk 0:03:00]} 6. O-O {[%clk 0:02:57]}  d6 {[%clk 0:03:00]} 7. h3 {[%clk 0:02:52]}  Qc7 {[%clk 0:03:00]} 8. Be3 {[%clk 0:02:51]}  Be7 {[%clk 0:03:00]} 9. Bb3 {[%clk 0:02:44]}  Nxb3 {[%clk 0:02:59]} 10. axb3 {[%clk 0:02:44]}  a6 {[%clk 0:02:58]} 11. f4 {[%clk 0:02:44]}  h6 {[%clk 0:02:57]} 12. Ng3 {[%clk 0:02:32]}  O-O {[%clk 0:02:48]} 13. fxe5 {[%clk 0:02:31]}  dxe5 {[%clk 0:02:44]} 14. Nf5 {[%clk 0:02:32]}  Bxf5 {[%clk 0:02:44]} 15. Rxf5 {[%clk 0:02:33]}  Kh7 {[%clk 0:02:43]} 16. Qf3 {[%clk 0:02:32]}  Rae8 {[%clk 0:02:37]} 17. Rf1 {[%clk 0:02:31]}  Bd8 {[%clk 0:02:32]} 18. Ne2 {[%clk 0:02:28]}  c5 {[%clk 0:02:27]} 19. g4 {[%clk 0:02:18]}  Re6 {[%clk 0:02:21]} 20. Qg3 {[%clk 0:02:13]}  Ng8 {[%clk 0:02:10]} 21. Nc3 {[%clk 0:02:05]}  b6 {[%clk 0:01:57]} 22. Nd5 {[%clk 0:02:05]}  Qd7 {[%clk 0:01:56]} 23. Rxe5 {[%clk 0:01:55]}  Bc7 {[%clk 0:01:48]} 24. Nxc7 {[%clk 0:01:50]}  Qxc7 {[%clk 0:01:49]} 25. Bf4 {[%clk 0:01:48]}  Qd7 {[%clk 0:01:48]} 26. Rd5 {[%clk 0:01:41]}  Qc6 {[%clk 0:01:47]} 27. Rd6 {[%clk 0:01:21]}  Qc8 {[%clk 0:01:38]} 28. Rxe6 {[%clk 0:01:19]}  Qxe6 {[%clk 0:01:39]} 29. Be5 {[%clk 0:01:18]}  Re8 {[%clk 0:01:36]} 30. Bc3 {[%clk 0:01:17]}  b5 {[%clk 0:01:35]} 31. b4 {[%clk 0:01:14]}  c4 {[%clk 0:01:34]} 32. Qf4 {[%clk 0:01:11]}  cxd3 {[%clk 0:01:28]} 33. cxd3 {[%clk 0:01:12]}  f6 {[%clk 0:01:22]} 34. Re1 {[%clk 0:01:03]}  Ne7 {[%clk 0:01:17]} 35. d4 {[%clk 0:01:03]}  Qc6 {[%clk 0:01:08]} 36. d5 {[%clk 0:01:01]}  Qd7 {[%clk 0:00:59]} 37. Kg2 {[%clk 0:00:41]}  Nc8 {[%clk 0:00:55]} 38. Qf5+ {[%clk 0:00:40]}  Qxf5 {[%clk 0:00:52]} 39. gxf5 {[%clk 0:00:38]}  Nd6 {[%clk 0:00:50]} 40. Kf3 {[%clk 0:00:38]}  Kg8 {[%clk 0:00:49]} 41. Kf4 {[%clk 0:00:37]}  Kf7 {[%clk 0:00:47]} 42. e5 {[%clk 0:00:37]}  fxe5+ {[%clk 0:00:48]} 43. Rxe5 {[%clk 0:00:34]}  Rxe5 {[%clk 0:00:43]} 44. Bxe5 {[%clk 0:00:28]}  Nc4 {[%clk 0:00:44]} 45. d6 {[%clk 0:00:24]}  Nb6 {[%clk 0:00:42]} 46. Ke4 {[%clk 0:00:21]}  g6 {[%clk 0:00:35]} 47. fxg6+ {[%clk 0:00:20]}  Kxg6 {[%clk 0:00:36]} 48. Bd4 {[%clk 0:00:18]}  Nd7 {[%clk 0:00:35]} 49. Kd5 {[%clk 0:00:18]}  Kf5 {[%clk 0:00:35]} 50. Kc6 {[%clk 0:00:14]}  Ke6 {[%clk 0:00:36]} 51. Bc5 {[%clk 0:00:14]}  Ne5+ {[%clk 0:00:24]} 52. Kb6 {[%clk 0:00:14]}  Nc4+ {[%clk 0:00:23]} 53. Kxa6 {[%clk 0:00:15]}  Nxb2 {[%clk 0:00:24]} 54. Kxb5 {[%clk 0:00:15]}  Kd7 {[%clk 0:00:24]} 55. Be3 {[%clk 0:00:13]}  h5 {[%clk 0:00:20]} 56. Bf4 {[%clk 0:00:14]}  Nd3 {[%clk 0:00:19]} 57. Bg3 {[%clk 0:00:13]}  Nb2 {[%clk 0:00:19]} 58. Kc5 {[%clk 0:00:13]}  Na4+ {[%clk 0:00:19]} 59. Kd5 {[%clk 0:00:12]}  Nc3+ {[%clk 0:00:19]} 60. Kc4 {[%clk 0:00:10]}  Ne4 {[%clk 0:00:18]} 61. Be5 {[%clk 0:00:08]}  Ng5 {[%clk 0:00:18]} 62. h4 {[%clk 0:00:07]}  Nf3 {[%clk 0:00:19]} 63. Bg3 {[%clk 0:00:06]}  Nd2+ {[%clk 0:00:18]} 64. Kd3 {[%clk 0:00:06]}  Nb1 {[%clk 0:00:17]} 65. b5 {[%clk 0:00:04]}  Na3 {[%clk 0:00:17]} 66. b6 {[%clk 0:00:05]}  Kc6 {[%clk 0:00:13]} 67. d7 {[%clk 0:00:04]}  Kxd7 {[%clk 0:00:13]} 68. b7 {[%clk 0:00:04]}  Nb5 {[%clk 0:00:14]} 69. b8=Q {[%clk 0:00:04]}  Ke6 {[%clk 0:00:15]} 70. Qe5+ {[%clk 0:00:04]}  Kf7 {[%clk 0:00:14]} 71. Qxb5 {[%clk 0:00:05]}  Kg6 {[%clk 0:00:15]} 72. Qg5+ {[%clk 0:00:05]}  Kh7 {[%clk 0:00:15]} 73. Qxh5+ {[%clk 0:00:06]}  Kg7 {[%clk 0:00:16]} 74. Qg5+ {[%clk 0:00:06]}  Kh7 {[%clk 0:00:15]} 75. Ke4 {[%clk 0:00:07]}  Kh8 {[%clk 0:00:16]} 76. Kf5 {[%clk 0:00:08]}  Kh7 {[%clk 0:00:17]} 77. Kf6 {[%clk 0:00:08]}  Kh8 {[%clk 0:00:17]} 78. Qg7# {[%clk 0:00:09]} 1-0

[Event "December 19 Early 2023"]
[Site "https://www.chess.com"]
[Date "2023.12.19"]
[Round "10"]
[White "Dmitrenko, Viktor"]
[Black "Espinoza Villanueva, Rodrigo"]
[Result "0-1"]
[Board "84"]
[TimeControl "180+1"]
[WhiteFideId "14110270"]
[BlackFideId "5140188"]
[WhiteElo "2292"]
[BlackElo "1907"]
[WhiteTeam "UKR"]
[BlackTeam "MEX"]
[WhiteClock "0:00:00"]
[BlackClock "0:00:20"]

1. e4 {[%clk 0:03:00]}  c5 {[%clk 0:02:57]} 2. Nf3 {[%clk 0:03:00]}  e6 {[%clk 0:02:57]} 3. c3 {[%clk 0:02:59]}  Nc6 {[%clk 0:02:54]} 4. d4 {[%clk 0:02:52]}  d5 {[%clk 0:02:54]} 5. e5 {[%clk 0:02:50]}  Nh6 {[%clk 0:02:52]} 6. Be2 {[%clk 0:02:36]}  Nf5 {[%clk 0:02:43]} 7. Na3 {[%clk 0:02:35]}  Bd7 {[%clk 0:02:43]} 8. Nc2 {[%clk 0:02:35]}  Rc8 {[%clk 0:02:41]} 9. O-O {[%clk 0:02:35]}  h5 {[%clk 0:02:40]} 10. dxc5 {[%clk 0:02:14]}  Bxc5 {[%clk 0:02:39]} 11. b4 {[%clk 0:02:12]}  Be7 {[%clk 0:02:39]} 12. Bd3 {[%clk 0:02:10]}  g6 {[%clk 0:02:38]} 13. Re1 {[%clk 0:02:03]}  a6 {[%clk 0:02:31]} 14. a4 {[%clk 0:01:47]}  Kf8 {[%clk 0:02:26]} 15. Bf4 {[%clk 0:01:09]}  Kg7 {[%clk 0:02:21]} 16. Qd2 {[%clk 0:01:08]}  h4 {[%clk 0:02:17]} 17. Bxf5 {[%clk 0:01:02]}  gxf5 {[%clk 0:02:08]} 18. h3 {[%clk 0:01:03]}  Rh5 {[%clk 0:02:00]} 19. Ncd4 {[%clk 0:00:42]}  Qh8 {[%clk 0:01:52]} 20. b5 {[%clk 0:00:17]}  Na5 {[%clk 0:01:48]} 21. Qe2 {[%clk 0:00:17]}  Nc4 {[%clk 0:01:47]} 22. Nd2 {[%clk 0:00:12]}  Qh7 {[%clk 0:01:40]} 23. Nxc4 {[%clk 0:00:11]}  Rxc4 {[%clk 0:01:41]} 24. bxa6 {[%clk 0:00:11]}  bxa6 {[%clk 0:01:40]} 25. Bd2 {[%clk 0:00:07]}  Qg6 {[%clk 0:01:39]} 26. Kh1 {[%clk 0:00:06]}  Bg5 {[%clk 0:01:38]} 27. Nf3 {[%clk 0:00:03]}  Bxd2 {[%clk 0:01:32]} 28. Qxd2 {[%clk 0:00:04]}  Re4 {[%clk 0:01:24]} 29. Rxe4 {[%clk 0:00:02]}  fxe4 {[%clk 0:01:25]} 30. Nh2 {[%clk 0:00:03]}  Rg5 {[%clk 0:01:19]} 31. Ng4 {[%clk 0:00:03]}  Rxg4 {[%clk 0:01:18]} 32. hxg4 {[%clk 0:00:03]}  Qxg4 {[%clk 0:01:19]} 33. Qe3 {[%clk 0:00:03]}  Bxa4 {[%clk 0:01:11]} 34. Rxa4 {[%clk 0:00:03]}  Qd1+ {[%clk 0:01:11]} 35. Kh2 {[%clk 0:00:03]}  Qxa4 {[%clk 0:01:12]} 36. Qg5+ {[%clk 0:00:03]}  Kf8 {[%clk 0:01:03]} 37. Qd8+ {[%clk 0:00:04]}  Qe8 {[%clk 0:01:02]} 38. Qxh4 {[%clk 0:00:04]}  a5 {[%clk 0:00:45]} 39. f3 {[%clk 0:00:04]}  e3 {[%clk 0:00:38]} 40. Qd4 {[%clk 0:00:02]}  Qe7 {[%clk 0:00:37]} 41. Qxe3 {[%clk 0:00:02]}  Qh4+ {[%clk 0:00:34]} 42. Kg1 {[%clk 0:00:02]}  a4 {[%clk 0:00:34]} 43. Qa7 {[%clk 0:00:03]}  Qe1+ {[%clk 0:00:30]} 44. Kh2 {[%clk 0:00:02]}  Qxe5+ {[%clk 0:00:30]} 45. Kg1 {[%clk 0:00:02]}  Qxc3 {[%clk 0:00:24]} 46. Qxa4 {[%clk 0:00:02]}  d4 {[%clk 0:00:23]} 47. Qa8+ {[%clk 0:00:01]}  Kg7 {[%clk 0:00:23]} 48. Qe4 {[%clk 0:00:00]}  d3 {[%clk 0:00:20]} 0-1

[Event "December 19 Early 2023"]
[Site "https://www.chess.com"]
[Date "2023.12.19"]
[Round "10"]
[White "Nanu, Costica-Ciprian"]
[Black "Joel Paul Ganta"]
[Result "1-0"]
[Board "89"]
[TimeControl "180+1"]
[WhiteFideId "1204580"]
[BlackFideId "35066145"]
[WhiteElo "2485"]
[BlackElo "1891"]
[WhiteTeam "ROU"]
[BlackTeam "IND"]
[WhiteClock "0:01:08"]
[BlackClock "0:00:00"]

1. a3 {[%clk 0:02:57]}  a6 {[%clk 0:02:55]} 2. Nf3 {[%clk 0:02:49]}  Nf6 {[%clk 0:02:50]} 3. e3 {[%clk 0:02:49]}  e6 {[%clk 0:02:49]} 4. c4 {[%clk 0:02:50]}  c5 {[%clk 0:02:47]} 5. Nc3 {[%clk 0:02:50]}  Nc6 {[%clk 0:02:45]} 6. d4 {[%clk 0:02:50]}  cxd4 {[%clk 0:02:45]} 7. exd4 {[%clk 0:02:51]}  d5 {[%clk 0:02:45]} 8. c5 {[%clk 0:02:51]}  Be7 {[%clk 0:02:08]} 9. Bd3 {[%clk 0:02:43]}  O-O {[%clk 0:02:08]} 10. O-O {[%clk 0:02:44]}  e5 {[%clk 0:01:52]} 11. dxe5 {[%clk 0:02:27]}  Ng4 {[%clk 0:01:48]} 12. h3 {[%clk 0:02:22]}  Ngxe5 {[%clk 0:01:43]} 13. Nxe5 {[%clk 0:02:23]}  Nxe5 {[%clk 0:01:41]} 14. Bxh7+ {[%clk 0:02:24]}  Kxh7 {[%clk 0:01:36]} 15. Qh5+ {[%clk 0:02:24]}  Kg8 {[%clk 0:01:36]} 16. Qxe5 {[%clk 0:02:24]}  Be6 {[%clk 0:01:12]} 17. Be3 {[%clk 0:01:52]}  Bf6 {[%clk 0:01:05]} 18. Qf4 {[%clk 0:01:49]}  Re8 {[%clk 0:00:36]} 19. Rad1 {[%clk 0:01:25]}  Qd7 {[%clk 0:00:12]} 20. Bd4 {[%clk 0:01:18]}  Bxd4 {[%clk 0:00:09]} 21. Rxd4 {[%clk 0:01:18]}  Rac8 {[%clk 0:00:07]} 22. b4 {[%clk 0:01:18]}  b6 {[%clk 0:00:07]} 23. Nxd5 {[%clk 0:01:11]}  Bxd5 {[%clk 0:00:06]} 24. Rfd1 {[%clk 0:01:11]}  Rcd8 {[%clk 0:00:00]} 25. Rxd5 {[%clk 0:01:08]} 1-0

[Event "December 19 Early 2023"]
[Site "https://www.chess.com"]
[Date "2023.12.19"]
[Round "10"]
[White "Santos, Rafael Ventura Dos"]
[Black "Tulchynskyi, Feliks"]
[Result "0-1"]
[Board "90"]
[TimeControl "180+1"]
[WhiteFideId "2122227"]
[BlackFideId "34127895"]
[WhiteElo "2138"]
[BlackElo "2131"]
[WhiteTeam "BRA"]
[BlackTeam "UKR"]
[WhiteClock "0:00:09"]
[BlackClock "0:00:36"]

1. e4 {[%clk 0:03:00]}  e6 {[%clk 0:02:59]} 2. d4 {[%clk 0:03:00]}  d5 {[%clk 0:03:00]} 3. Nd2 {[%clk 0:03:00]}  Nf6 {[%clk 0:02:59]} 4. e5 {[%clk 0:03:01]}  Nfd7 {[%clk 0:02:59]} 5. Bd3 {[%clk 0:03:01]}  c5 {[%clk 0:02:53]} 6. c3 {[%clk 0:03:01]}  b6 {[%clk 0:02:51]} 7. Ne2 {[%clk 0:02:58]}  Ba6 {[%clk 0:02:51]} 8. Nf4 {[%clk 0:02:57]}  Bxd3 {[%clk 0:02:47]} 9. Nxd3 {[%clk 0:02:57]}  Nc6 {[%clk 0:02:47]} 10. Nf3 {[%clk 0:02:56]}  Be7 {[%clk 0:02:46]} 11. O-O {[%clk 0:02:54]}  O-O {[%clk 0:02:46]} 12. Nf4 {[%clk 0:02:44]}  b5 {[%clk 0:02:41]} 13. Re1 {[%clk 0:02:35]}  b4 {[%clk 0:02:40]} 14. c4 {[%clk 0:02:01]}  Nb6 {[%clk 0:02:26]} 15. cxd5 {[%clk 0:01:57]}  Nxd5 {[%clk 0:02:25]} 16. dxc5 {[%clk 0:01:42]}  Bxc5 {[%clk 0:02:24]} 17. Nxd5 {[%clk 0:01:39]}  exd5 {[%clk 0:02:25]} 18. Be3 {[%clk 0:01:27]}  d4 {[%clk 0:02:20]} 19. Bg5 {[%clk 0:01:27]}  Qd5 {[%clk 0:02:19]} 20. Qb3 {[%clk 0:01:21]}  Qxb3 {[%clk 0:02:16]} 21. axb3 {[%clk 0:01:22]}  h6 {[%clk 0:02:12]} 22. Bh4 {[%clk 0:01:17]}  g5 {[%clk 0:02:10]} 23. Bg3 {[%clk 0:01:17]}  Rfc8 {[%clk 0:02:08]} 24. Nd2 {[%clk 0:00:48]}  Nd8 {[%clk 0:02:06]} 25. Rac1 {[%clk 0:00:40]}  Ne6 {[%clk 0:02:05]} 26. Ne4 {[%clk 0:00:38]}  Be7 {[%clk 0:02:05]} 27. Nd6 {[%clk 0:00:33]}  Rc5 {[%clk 0:01:39]} 28. Nf5 {[%clk 0:00:22]}  Kf8 {[%clk 0:01:26]} 29. Rxc5 {[%clk 0:00:20]}  Bxc5 {[%clk 0:01:23]} 30. Rc1 {[%clk 0:00:19]}  Rd8 {[%clk 0:01:19]} 31. Nd6 {[%clk 0:00:19]}  Bxd6 {[%clk 0:01:16]} 32. exd6 {[%clk 0:00:19]}  Nf4 {[%clk 0:01:06]} 33. Bxf4 {[%clk 0:00:17]}  gxf4 {[%clk 0:01:07]} 34. Kf1 {[%clk 0:00:17]}  Rxd6 {[%clk 0:01:07]} 35. Ke2 {[%clk 0:00:18]}  a5 {[%clk 0:00:58]} 36. Rc5 {[%clk 0:00:16]}  d3+ {[%clk 0:00:55]} 37. Kd2 {[%clk 0:00:16]}  Rg6 {[%clk 0:00:55]} 38. g3 {[%clk 0:00:16]}  fxg3 {[%clk 0:00:54]} 39. hxg3 {[%clk 0:00:17]}  Rf6 {[%clk 0:00:54]} 40. f4 {[%clk 0:00:16]}  Rg6 {[%clk 0:00:54]} 41. Rxa5 {[%clk 0:00:13]}  Rxg3 {[%clk 0:00:54]} 42. Rd5 {[%clk 0:00:13]}  Ke7 {[%clk 0:00:50]} 43. Rd4 {[%clk 0:00:12]}  h5 {[%clk 0:00:50]} 44. Rxb4 {[%clk 0:00:12]}  h4 {[%clk 0:00:50]} 45. f5 {[%clk 0:00:13]}  h3 {[%clk 0:00:50]} 46. Rh4 {[%clk 0:00:13]}  Kf6 {[%clk 0:00:51]} 47. b4 {[%clk 0:00:12]}  Kg5 {[%clk 0:00:50]} 48. Rh8 {[%clk 0:00:11]}  Kg4 {[%clk 0:00:48]} 49. b5 {[%clk 0:00:10]}  Rg2+ {[%clk 0:00:48]} 50. Kxd3 {[%clk 0:00:10]}  Rxb2 {[%clk 0:00:48]} 51. Kc4 {[%clk 0:00:11]}  h2 {[%clk 0:00:46]} 52. b6 {[%clk 0:00:07]}  Kg3 {[%clk 0:00:43]} 53. Kc5 {[%clk 0:00:06]}  Kg2 {[%clk 0:00:43]} 54. f6 {[%clk 0:00:05]}  h1=Q {[%clk 0:00:36]} 55. Rxh1 {[%clk 0:00:05]}  Kxh1 {[%clk 0:00:37]} 56. Kc6 {[%clk 0:00:05]}  Kg2 {[%clk 0:00:38]} 57. b7 {[%clk 0:00:05]}  Kf3 {[%clk 0:00:38]} 58. Kc7 {[%clk 0:00:06]}  Ke4 {[%clk 0:00:38]} 59. b8=Q {[%clk 0:00:07]}  Rxb8 {[%clk 0:00:38]} 60. Kxb8 {[%clk 0:00:08]}  Ke5 {[%clk 0:00:38]} 61. Kc7 {[%clk 0:00:09]}  Kxf6 {[%clk 0:00:39]} 62. Kd6 {[%clk 0:00:09]}  Kg5 {[%clk 0:00:37]} 63. Ke5 {[%clk 0:00:09]}  f5 {[%clk 0:00:37]} 64. Kd4 {[%clk 0:00:09]}  Kf4 {[%clk 0:00:37]} 65. Kd3 {[%clk 0:00:10]}  Kf3 {[%clk 0:00:38]} 66. Kd2 {[%clk 0:00:10]}  f4 {[%clk 0:00:35]} 67. Ke1 {[%clk 0:00:10]}  Kg2 {[%clk 0:00:36]} 68. Kd2 {[%clk 0:00:09]}  f3 {[%clk 0:00:36]} 0-1

[Event "December 19 Early 2023"]
[Site "https://www.chess.com"]
[Date "2023.12.19"]
[Round "10"]
[White "Tifferet, Shakked"]
[Black "Martin, Lewis"]
[Result "1-0"]
[Board "91"]
[TimeControl "180+1"]
[WhiteFideId "2811529"]
[BlackFideId "410551"]
[WhiteElo "2142"]
[BlackElo "2145"]
[WhiteTeam "ISR"]
[BlackTeam "ENG"]
[WhiteClock "0:00:06"]
[BlackClock "0:00:04"]

1. e4 {[%clk 0:03:00]}  c6 {[%clk 0:02:59]} 2. d4 {[%clk 0:02:55]}  d5 {[%clk 0:03:00]} 3. e5 {[%clk 0:02:53]}  Bf5 {[%clk 0:02:59]} 4. Be3 {[%clk 0:02:53]}  e6 {[%clk 0:02:57]} 5. Nd2 {[%clk 0:02:54]}  Nd7 {[%clk 0:02:52]} 6. g4 {[%clk 0:02:49]}  Bg6 {[%clk 0:02:51]} 7. Be2 {[%clk 0:02:48]}  f6 {[%clk 0:02:47]} 8. f4 {[%clk 0:02:47]}  fxe5 {[%clk 0:02:41]} 9. dxe5 {[%clk 0:02:44]}  Bc5 {[%clk 0:02:36]} 10. Bxc5 {[%clk 0:02:41]}  Nxc5 {[%clk 0:02:36]} 11. h4 {[%clk 0:02:41]}  h5 {[%clk 0:02:25]} 12. f5 {[%clk 0:02:33]}  exf5 {[%clk 0:02:22]} 13. gxh5 {[%clk 0:02:33]}  Bf7 {[%clk 0:02:17]} 14. Ngf3 {[%clk 0:02:15]}  Nh6 {[%clk 0:02:12]} 15. Ng5 {[%clk 0:02:14]}  d4 {[%clk 0:02:06]} 16. Ndf3 {[%clk 0:02:06]}  Bxh5 {[%clk 0:01:48]} 17. Qxd4 {[%clk 0:01:57]}  Qxd4 {[%clk 0:01:43]} 18. Nxd4 {[%clk 0:01:57]}  Bxe2 {[%clk 0:01:42]} 19. Kxe2 {[%clk 0:01:57]}  O-O-O {[%clk 0:01:34]} 20. Rad1 {[%clk 0:01:51]}  Rhe8 {[%clk 0:01:31]} 21. Ndf3 {[%clk 0:01:50]}  Rxd1 {[%clk 0:01:24]} 22. Rxd1 {[%clk 0:01:49]}  Ng4 {[%clk 0:01:25]} 23. Nf7 {[%clk 0:01:46]}  Kc7 {[%clk 0:01:13]} 24. Nd6 {[%clk 0:01:44]}  Re7 {[%clk 0:01:08]} 25. Nxf5 {[%clk 0:01:43]}  Rf7 {[%clk 0:01:06]} 26. N5d4 {[%clk 0:01:32]}  Re7 {[%clk 0:01:03]} 27. Nf5 {[%clk 0:01:27]}  Rf7 {[%clk 0:01:03]} 28. Rg1 {[%clk 0:01:27]}  Nxe5 {[%clk 0:00:49]} 29. Rxg7 {[%clk 0:01:24]}  Rxg7 {[%clk 0:00:42]} 30. Nxg7 {[%clk 0:01:25]}  Ng4 {[%clk 0:00:36]} 31. Nf5 {[%clk 0:01:17]}  Kd7 {[%clk 0:00:34]} 32. h5 {[%clk 0:01:16]}  Ke6 {[%clk 0:00:33]} 33. h6 {[%clk 0:01:02]}  Nf6 {[%clk 0:00:29]} 34. N3d4+ {[%clk 0:00:57]}  Kf7 {[%clk 0:00:27]} 35. Nd6+ {[%clk 0:00:58]}  Kg6 {[%clk 0:00:26]} 36. Nxb7 {[%clk 0:00:59]}  Nxb7 {[%clk 0:00:26]} 37. Nxc6 {[%clk 0:00:57]}  a6 {[%clk 0:00:25]} 38. c4 {[%clk 0:00:46]}  Kxh6 {[%clk 0:00:24]} 39. b4 {[%clk 0:00:46]}  Kg5 {[%clk 0:00:22]} 40. a4 {[%clk 0:00:44]}  Kf4 {[%clk 0:00:21]} 41. Kd3 {[%clk 0:00:43]}  Nd7 {[%clk 0:00:20]} 42. a5 {[%clk 0:00:41]}  Nd6 {[%clk 0:00:18]} 43. Kd4 {[%clk 0:00:38]}  Kf5 {[%clk 0:00:16]} 44. Kd5 {[%clk 0:00:38]}  Nb7 {[%clk 0:00:16]} 45. b5 {[%clk 0:00:34]}  axb5 {[%clk 0:00:15]} 46. a6 {[%clk 0:00:29]}  Nb6+ {[%clk 0:00:12]} 47. Kd4 {[%clk 0:00:29]}  Nd6 {[%clk 0:00:10]} 48. c5 {[%clk 0:00:28]}  Ndc8 {[%clk 0:00:09]} 49. cxb6 {[%clk 0:00:11]}  Nxb6 {[%clk 0:00:10]} 50. Kc5 {[%clk 0:00:11]}  Na8 {[%clk 0:00:10]} 51. Nd4+ {[%clk 0:00:07]}  Kf6 {[%clk 0:00:09]} 52. Nxb5 {[%clk 0:00:07]}  Ke7 {[%clk 0:00:09]} 53. Kc6 {[%clk 0:00:06]}  Kd8 {[%clk 0:00:08]} 54. Kb7 {[%clk 0:00:07]}  Kd7 {[%clk 0:00:06]} 55. Kxa8 {[%clk 0:00:06]}  Kc8 {[%clk 0:00:06]} 56. Ka7 {[%clk 0:00:05]}  Kd7 {[%clk 0:00:04]} 57. Kb6 {[%clk 0:00:06]} 1-0

[Event "December 19 Early 2023"]
[Site "https://www.chess.com"]
[Date "2023.12.19"]
[Round "10"]
[White "Dinu, Dumitru-Daniel"]
[Black "Petrova, Irina"]
[Result "0-1"]
[Board "92"]
[TimeControl "180+1"]
[WhiteFideId "1208403"]
[BlackFideId "14124122"]
[WhiteElo "2240"]
[BlackElo "2085"]
[WhiteTeam "ROU"]
[BlackTeam "UKR"]
[WhiteClock "0:00:06"]
[BlackClock "0:00:14"]

1. e4 {[%clk 0:03:00]}  d6 {[%clk 0:03:00]} 2. d4 {[%clk 0:02:59]}  Nf6 {[%clk 0:03:01]} 3. Nc3 {[%clk 0:02:59]}  e5 {[%clk 0:03:00]} 4. Nf3 {[%clk 0:02:57]}  Nbd7 {[%clk 0:02:59]} 5. Bc4 {[%clk 0:02:57]}  Be7 {[%clk 0:02:58]} 6. O-O {[%clk 0:02:56]}  c6 {[%clk 0:02:57]} 7. a4 {[%clk 0:02:55]}  O-O {[%clk 0:02:55]} 8. Re1 {[%clk 0:02:48]}  h6 {[%clk 0:02:55]} 9. h3 {[%clk 0:02:45]}  Re8 {[%clk 0:02:55]} 10. a5 {[%clk 0:02:42]}  Bf8 {[%clk 0:02:54]} 11. d5 {[%clk 0:02:17]}  b5 {[%clk 0:02:54]} 12. Bb3 {[%clk 0:01:54]}  b4 {[%clk 0:02:52]} 13. dxc6 {[%clk 0:01:51]}  Nb8 {[%clk 0:02:49]} 14. Nd5 {[%clk 0:01:30]}  Nxc6 {[%clk 0:02:49]} 15. a6 {[%clk 0:01:18]}  Be6 {[%clk 0:02:45]} 16. Bd2 {[%clk 0:00:55]}  Rb8 {[%clk 0:02:31]} 17. Ra4 {[%clk 0:00:50]}  Qc8 {[%clk 0:02:09]} 18. Nxf6+ {[%clk 0:00:40]}  gxf6 {[%clk 0:02:10]} 19. Be3 {[%clk 0:00:28]}  Qd7 {[%clk 0:01:53]} 20. Nh4 {[%clk 0:00:26]}  f5 {[%clk 0:01:49]} 21. exf5 {[%clk 0:00:11]}  Bxf5 {[%clk 0:01:50]} 22. Qf3 {[%clk 0:00:12]}  Be6 {[%clk 0:01:44]} 23. Bxe6 {[%clk 0:00:09]}  fxe6 {[%clk 0:01:44]} 24. Qg4+ {[%clk 0:00:09]}  Qg7 {[%clk 0:01:43]} 25. Qe4 {[%clk 0:00:07]}  d5 {[%clk 0:01:41]} 26. Qd3 {[%clk 0:00:08]}  e4 {[%clk 0:01:32]} 27. Qd2 {[%clk 0:00:07]}  Ne5 {[%clk 0:01:28]} 28. Bf4 {[%clk 0:00:07]}  Nc4 {[%clk 0:01:27]} 29. Qd1 {[%clk 0:00:07]}  Rbc8 {[%clk 0:01:15]} 30. Qe2 {[%clk 0:00:06]}  Nxb2 {[%clk 0:01:12]} 31. Ra5 {[%clk 0:00:06]}  Nc4 {[%clk 0:01:10]} 32. Rb5 {[%clk 0:00:06]}  Be7 {[%clk 0:01:01]} 33. Rb7 {[%clk 0:00:05]}  Qf6 {[%clk 0:00:56]} 34. Qh5 {[%clk 0:00:05]}  Qxh4 {[%clk 0:00:53]} 35. Qg6+ {[%clk 0:00:05]}  Kh8 {[%clk 0:00:52]} 36. Bxh6 {[%clk 0:00:03]}  Rg8 {[%clk 0:00:37]} 37. Qxe6 {[%clk 0:00:03]}  Rce8 {[%clk 0:00:24]} 38. Qxd5 {[%clk 0:00:04]}  Qxh6 {[%clk 0:00:22]} 39. Qxc4 {[%clk 0:00:03]}  Bh4 {[%clk 0:00:19]} 40. Qc7 {[%clk 0:00:02]}  Qg7 {[%clk 0:00:18]} 41. Qxg7+ {[%clk 0:00:01]}  Rxg7 {[%clk 0:00:19]} 42. Rxg7 {[%clk 0:00:02]}  Kxg7 {[%clk 0:00:20]} 43. Rd1 {[%clk 0:00:02]}  Re6 {[%clk 0:00:19]} 44. Rd7+ {[%clk 0:00:02]}  Re7 {[%clk 0:00:19]} 45. Rd4 {[%clk 0:00:02]}  Kf6 {[%clk 0:00:19]} 46. Rxb4 {[%clk 0:00:02]}  Re6 {[%clk 0:00:18]} 47. Ra4 {[%clk 0:00:02]}  Ke5 {[%clk 0:00:18]} 48. g3 {[%clk 0:00:03]}  Bd8 {[%clk 0:00:17]} 49. Rc4 {[%clk 0:00:03]}  Bb6 {[%clk 0:00:17]} 50. h4 {[%clk 0:00:03]}  Rf6 {[%clk 0:00:16]} 51. Kg2 {[%clk 0:00:04]}  Rxf2+ {[%clk 0:00:16]} 52. Kh3 {[%clk 0:00:04]}  Rf6 {[%clk 0:00:15]} 53. h5 {[%clk 0:00:04]}  e3 {[%clk 0:00:15]} 54. Rc8 {[%clk 0:00:03]}  e2 {[%clk 0:00:15]} 55. Re8+ {[%clk 0:00:03]}  Re6 {[%clk 0:00:15]} 56. Rxe6+ {[%clk 0:00:04]}  Kxe6 {[%clk 0:00:16]} 57. h6 {[%clk 0:00:04]}  e1=Q {[%clk 0:00:16]} 58. h7 {[%clk 0:00:05]}  Qh1+ {[%clk 0:00:16]} 59. Kg4 {[%clk 0:00:05]}  Qxh7 {[%clk 0:00:17]} 60. Kf3 {[%clk 0:00:05]}  Qf5+ {[%clk 0:00:17]} 61. Kg2 {[%clk 0:00:06]}  Qg4 {[%clk 0:00:17]} 62. c4 {[%clk 0:00:05]}  Bc7 {[%clk 0:00:17]} 63. Kf1 {[%clk 0:00:05]}  Qxg3 {[%clk 0:00:18]} 64. c5 {[%clk 0:00:06]}  Ba5 {[%clk 0:00:18]} 65. Ke2 {[%clk 0:00:04]}  Qc3 {[%clk 0:00:17]} 66. c6 {[%clk 0:00:04]}  Qxc6 {[%clk 0:00:17]} 67. Kd3 {[%clk 0:00:04]}  Qxa6+ {[%clk 0:00:18]} 68. Ke4 {[%clk 0:00:05]}  Qc6+ {[%clk 0:00:18]} 69. Kd3 {[%clk 0:00:05]}  Qc5 {[%clk 0:00:18]} 70. Ke4 {[%clk 0:00:05]}  a6 {[%clk 0:00:17]} 71. Kf3 {[%clk 0:00:05]}  Qd4 {[%clk 0:00:17]} 72. Ke2 {[%clk 0:00:05]}  Bb6 {[%clk 0:00:16]} 73. Kf3 {[%clk 0:00:05]}  Qe3+ {[%clk 0:00:16]} 74. Kg4 {[%clk 0:00:05]}  Qf2 {[%clk 0:00:16]} 75. Kg5 {[%clk 0:00:05]}  Qf5+ {[%clk 0:00:16]} 76. Kh6 {[%clk 0:00:05]}  Be3+ {[%clk 0:00:15]} 77. Kg7 {[%clk 0:00:04]}  Qf6+ {[%clk 0:00:14]} 78. Kg8 {[%clk 0:00:05]}  Qf7+ {[%clk 0:00:14]} 79. Kh8 {[%clk 0:00:06]}  Bd4# {[%clk 0:00:14]} 0-1